fUST/lending_fUST_20250504
["ID","MTS","AMOUNT","RATE_DAILY","PERIOD"]
[359740035,1746292238909,-812.07,0.00018024,2]
[359740037,1746292238919,-400.0,0.00018024,2]
[359740040,1746292238930,-399.84078606,0.00018024,2]
[359740042,1746292238940,-410.16,0.00018024,2]
[359740044,1746292238951,-400.0,0.00018024,2]
[359740046,1746292238961,-400.0,0.00018024,2]
[359740048,1746292238970,-1638.33,0.00018024,2]
[359740050,1746292238980,-400.0,0.00018024,2]
[359740052,1746292238990,-400.0,0.00018024,2]
[359740054,1746292238999,-400.0,0.00018024,2]
[359740056,1746292239011,-400.0,0.00018024,2]
[359740058,1746292239020,-400.0,0.00018024,2]
[359740061,1746292239031,-400.0,0.00018024,2]
[359740063,1746292239041,-400.0,0.00018024,2]
[359740065,1746292239051,-400.0,0.00018024,2]
[359740067,1746292239061,-400.0,0.00018024,2]
[359740069,1746292239070,-400.0,0.00018024,2]
[359740071,1746292239079,-400.0,0.00018024,2]
[359740073,1746292239090,-400.0,0.00018024,2]
[359740075,1746292239099,-400.0,0.00018024,2]
[359740077,1746292239109,-400.0,0.00018024,2]
[359740079,1746292239119,-400.0,0.00018024,2]
[359740081,1746292239128,-400.0,0.00018024,2]
[359740083,1746292239138,-400.0,0.00018024,2]
[359740085,1746292239148,-400.0,0.00018024,2]
[359740087,1746292239157,-832.81,0.00018024,2]
[359740089,1746292239167,-400.0,0.00018024,2]
[359740091,1746292239177,-400.0,0.00018024,2]
[359740093,1746292239188,-400.0,0.00018024,2]
[359740095,1746292239198,-400.0,0.00018024,2]
[359740097,1746292239208,-187.63833708,0.00018024,2]
[359740099,1746292239218,-400.0,0.00018024,2]
[359740101,1746292239229,-400.0,0.00018024,2]
[359740103,1746292239239,-400.0,0.00018024,2]
[359740106,1746292239249,-400.0,0.00018024,2]
[359740108,1746292239259,-704.13,0.00018024,2]
[359740110,1746292239270,-400.0,0.00018024,2]
[359740112,1746292239280,-400.0,0.00018024,2]
[359740114,1746292239289,-400.0,0.00018024,2]
[359740116,1746292239298,-348.21439001,0.00018024,2]
[359740118,1746292239308,-400.0,0.00018024,2]
[359740120,1746292239317,-647.1,0.00018024,2]
[359740122,1746292239328,-400.0,0.00018024,2]
[359740124,1746292239337,-433.38,0.00018024,2]
[359740126,1746292239347,-400.0,0.00018024,2]
[359740128,1746292239357,-1304.5,0.00018024,2]
[359740130,1746292239367,-400.0,0.00018024,2]
[359740132,1746292239377,-515.05,0.00018024,2]
[359740134,1746292239388,-400.0,0.00018024,2]
[359740136,1746292239398,-448.75,0.00018024,2]
[359740138,1746292239409,-455.21,0.00018024,2]
[359740140,1746292239421,-400.0,0.00018024,2]
[359740142,1746292239431,-400.0,0.00018024,2]
[359740144,1746292239441,-400.0,0.00018024,2]
[359740147,1746292239455,-400.0,0.00018024,2]
[359740149,1746292239465,-400.0,0.00018024,2]
[359740151,1746292239475,-559.83,0.00018024,2]
[359740153,1746292239485,-400.0,0.00018024,2]
[359740155,1746292239497,-505.29,0.00018024,2]
[359740157,1746292239508,-489.55,0.00018024,2]
[359740159,1746292239518,-400.0,0.00018024,2]
[359740161,1746292239528,-734.71,0.00018024,2]
[359740163,1746292239538,-400.0,0.00018024,2]
[359740165,1746292239548,-1101.31,0.00018024,2]
[359740167,1746292239558,-400.0,0.00018024,2]
[359740169,1746292239568,-463.93,0.00018024,2]
[359740171,1746292239578,-400.0,0.00018024,2]
[359740173,1746292239588,-400.0,0.00018024,2]
[359740175,1746292239598,-400.0,0.00018024,2]
[359740177,1746292239608,-464.53,0.00018024,2]
[359740179,1746292239617,-400.0,0.00018024,2]
[359740181,1746292239627,-400.0,0.00018024,2]
[359740183,1746292239637,-676.91,0.00018024,2]
[359740185,1746292239646,-738.73,0.00018024,2]
[359740187,1746292239656,-400.0,0.00018024,2]
[359740189,1746292239666,-400.0,0.00018024,2]
[359740191,1746292239676,-481.2,0.00018024,2]
[359740194,1746292239687,-769.52,0.00018024,2]
[359740196,1746292239696,-412.05,0.00018024,2]
[359740198,1746292239706,-400.0,0.00018024,2]
[359740200,1746292239716,-400.0,0.00018024,2]
[359740202,1746292239726,-400.0,0.00018024,2]
[359740204,1746292239736,-400.0,0.00018024,2]
[359740206,1746292239746,-407.99,0.00018024,2]
[359740208,1746292239755,-400.0,0.00018024,2]
[359740210,1746292239765,-400.0,0.00018024,2]
[359740212,1746292239776,-1849.53,0.00018024,2]
[359740214,1746292239785,-400.0,0.00018024,2]
[359740216,1746292239795,-400.0,0.00018024,2]
[359740218,1746292239805,-400.0,0.00018024,2]
[359740220,1746292239815,-556.84,0.00018024,2]
[359740222,1746292239825,-400.0,0.00018024,2]
[359740224,1746292239836,-510.35,0.00018024,2]
[359740227,1746292239846,-400.0,0.00018024,2]
[359740229,1746292239857,-400.0,0.00018024,2]
[359740231,1746292239868,-232.77580726,0.00018025,2]
[359740233,1746292239878,-400.0,0.00018025,2]
[359740235,1746292239887,-400.0,0.00018025,2]
[359740237,1746292239897,-400.0,0.00018025,2]
[359740239,1746292239909,-400.0,0.00018025,2]
[359740241,1746292239919,-400.0,0.00018025,2]
[359740243,1746292239928,-408.25622231,0.00018025,2]
[359740245,1746292239939,-555.24,0.00018288,3]
[359740247,1746292239949,-185.08,0.00018288,3]
[359740249,1746292239958,-555.24,0.00018288,3]
[359740251,1746292239968,-566.73,0.00018295,2]
[359740254,1746292239979,-400.0,0.00018295,2]
[359740256,1746292239989,-400.0,0.00018295,2]
[359740258,1746292239999,-549.24,0.00018295,2]
[359740260,1746292240009,-400.0,0.00018295,2]
[359740263,1746292240018,-400.0,0.00018295,2]
[359740265,1746292240028,-1103.52,0.00018295,2]
[359740267,1746292240037,-1615.8,0.00018295,2]
[359740269,1746292240046,-501.61,0.00018295,2]
[359740271,1746292240055,-400.0,0.00018295,2]
[359740273,1746292240064,-400.0,0.00018295,2]
[359740275,1746292240074,-400.0,0.00018295,2]
[359740277,1746292240083,-400.0,0.00018295,2]
[359740279,1746292240093,-819.87,0.00018295,2]
[359740282,1746292240103,-400.0,0.00018298,2]
[359740284,1746292240113,-400.0,0.00018298,2]
[359740286,1746292240123,-400.0,0.00018298,2]
[359740288,1746292240132,-400.0,0.00018298,2]
[359740290,1746292240141,-400.0,0.00018298,2]
[359740292,1746292240152,-563.01,0.00018298,2]
[359740295,1746292240161,-400.0,0.00018298,2]
[359740298,1746292240171,-426.28,0.00018298,2]
[359740300,1746292240180,-400.0,0.00018298,2]
[359740302,1746292240191,-400.0,0.00018298,2]
[359740304,1746292240200,-400.0,0.00018298,2]
[359740306,1746292240210,-400.0,0.00018298,2]
[359740308,1746292240220,-400.0,0.00018298,2]
[359740311,1746292240230,-400.0,0.00018298,2]
[359740313,1746292240241,-400.0,0.00018298,2]
[359740315,1746292240250,-400.0,0.00018298,2]
[359740317,1746292240260,-400.0,0.00018298,2]
[359740319,1746292240269,-400.0,0.00018298,2]
[359740321,1746292240279,-400.0,0.00018298,2]
[359740323,1746292240288,-400.0,0.00018298,2]
[359740325,1746292240298,-812.07,0.00018298,2]
[359740327,1746292240308,-400.0,0.00018298,2]
[359740329,1746292240317,-410.16,0.00018298,2]
[359740331,1746292240327,-177.93278267,0.00018298,2]
[359740333,1746292240336,-400.0,0.00018298,2]
[359740335,1746292240347,-1638.33,0.00018298,2]
[359740337,1746292240357,-248.04880532,0.00018298,2]
[359740339,1746292240366,-400.0,0.00018298,2]
[359740341,1746292240376,-400.0,0.00018298,2]
[359740343,1746292240385,-400.0,0.00018298,2]
[359740345,1746292240395,-400.0,0.00018298,2]
[359740347,1746292240404,-400.0,0.00018298,2]
[359740349,1746292240417,-400.0,0.00018298,2]
[359740351,1746292240427,-400.0,0.00018298,2]
[359740353,1746292240438,-400.0,0.00018298,2]
[359740355,1746292240447,-400.0,0.00018298,2]
[359740357,1746292240457,-400.0,0.00018298,2]
[359740359,1746292240467,-400.0,0.00018298,2]
[359740361,1746292240477,-467.20878455,0.00018298,2]
[359740363,1746292240487,-400.0,0.00018298,2]
[359740365,1746292240496,-400.0,0.00018298,2]
[359740367,1746292240506,-400.0,0.00018298,2]
[359740369,1746292240515,-400.0,0.00018298,2]
[359740371,1746292240525,-832.81,0.00018298,2]
[359740373,1746292240534,-399.57202066,0.00018298,2]
[359740375,1746292240544,-400.0,0.00018298,2]
[359740377,1746292240553,-400.0,0.00018298,2]
[359740379,1746292240562,-400.0,0.00018298,2]
[359740381,1746292240572,-400.0,0.00018298,2]
[359740384,1746292240581,-400.0,0.00018298,2]
[359740386,1746292240591,-400.0,0.00018298,2]
[359740387,1746292240600,-400.0,0.00018298,2]
[359740389,1746292240610,-400.0,0.00018298,2]
[359740391,1746292240619,-704.13,0.00018298,2]
[359740393,1746292240628,-400.0,0.00018298,2]
[359740395,1746292240638,-400.0,0.00018298,2]
[359740398,1746292240648,-400.0,0.00018298,2]
[359740399,1746292240657,-113.34681977,0.00018298,2]
[359740437,1746292240994,-383.112,0.00018024,2]
[359740439,1746292241006,-16.888,0.00018024,2]
[359740441,1746292241016,-533.75318023,0.00018298,2]
[359740443,1746292241026,-400.0,0.00018298,2]
[359740445,1746292241036,-200.74109139,0.00018298,2]
[359740955,1746292245898,-415.32,0.00018021,2]
[359740957,1746292245908,-493.59,0.00018021,2]
[359740959,1746292245917,-68.75966865,0.00018024,2]
[359741052,1746292246656,-331.24033135,0.00018024,2]
[359741054,1746292246667,-400.0,0.00018024,2]
[359741056,1746292246677,-415.32,0.00018295,2]
[359741058,1746292246687,-493.59,0.00018295,2]
[359741060,1746292246698,-199.25890861,0.00018298,2]
[359741062,1746292246708,-400.0,0.00018298,2]
[359741064,1746292246719,-448.75,0.00018298,2]
[359741067,1746292246729,-333.26044289,0.00018298,2]
[359741136,1746292340950,250.0,0.00017913,2]
[359741137,1746292362461,188.2854801,0.00017435,2]
[359741143,1746292539512,1064.03394402,0.00017924,2]
[359741145,1746292601922,563.13450564,0.00017921,2]
[359741151,1746292817199,492.74269247,0.00017921,2]
[359741152,1746292880421,851.22715524,0.00017921,2]
[359741159,1746293037582,431.14985592,0.00017921,2]
[359741163,1746293202184,-151.0,0.0001801,2]
[359741164,1746293202204,-207.4,0.0001801,2]
[359741165,1746293202225,-1200.0,0.00018019,2]
[359741166,1746293202246,-300.0,0.00018019,2]
[359741167,1746293202268,-300.0,0.00018019,2]
[359741168,1746293202289,-500.0,0.0001802,2]
[359741169,1746293202309,-500.0,0.0001802,2]
[359741170,1746293202332,-536.47687775,0.0001802,2]
[359741171,1746293202360,-500.0,0.0001802,2]
[359741172,1746293202383,-587.92606876,0.0001802,2]
[359741173,1746293202405,-500.0,0.0001802,2]
[359741174,1746293202434,-500.0,0.0001802,2]
[359741175,1746293202462,-625.48330789,0.0001802,2]
[359741176,1746293202483,-246.15402816,0.0001802,2]
[359741177,1746293202512,-500.0,0.0001802,2]
[359741178,1746293202540,-500.0,0.0001802,2]
[359741179,1746293202570,-500.0,0.0001802,2]
[359741180,1746293202591,-481.38283421,0.0001802,2]
[359741181,1746293202619,-438.46212377,0.0001802,2]
[359741182,1746293202648,-500.0,0.0001802,2]
[359741183,1746293202670,-400.0,0.00018021,2]
[359741184,1746293202696,-400.0,0.00018021,2]
[359741185,1746293202718,-156.80514187,0.00018021,2]
[359741186,1746293202740,-443.05,0.00018021,2]
[359741187,1746293202767,-400.0,0.00018021,2]
[359741188,1746293202789,-400.0,0.00018021,2]
[359741189,1746293202810,-400.0,0.00018021,2]
[359741190,1746293202831,-744.39,0.00018021,2]
[359741191,1746293202853,-400.0,0.00018021,2]
[359741192,1746293202875,-400.0,0.00018021,2]
[359741193,1746293202896,-281.60316109,0.00018021,2]
[359741194,1746293202917,-222.6287725,0.00018021,2]
[359741195,1746293221101,680.98172416,0.00017921,2]
[359741198,1746293232188,-300.0,0.0001802,2]
[359741199,1746293232209,-177.3712275,0.00018021,2]
[359741200,1746293232231,-400.0,0.00018021,2]
[359741201,1746293232251,-400.0,0.00018021,2]
[359741202,1746293232271,-533.64,0.00018021,2]
[359741203,1746293232292,-400.0,0.00018021,2]
[359741204,1746293232313,-222.86437541,0.00018021,2]
[359741205,1746293232333,-400.0,0.00018021,2]
[359741206,1746293232355,-400.0,0.00018021,2]
[359741207,1746293232376,-400.0,0.00018021,2]
[359741208,1746293232396,-541.69,0.00018021,2]
[359741209,1746293232416,-400.0,0.00018021,2]
[359741210,1746293232436,-400.0,0.00018021,2]
[359741211,1746293232457,-400.0,0.00018021,2]
[359741212,1746293232478,-400.0,0.00018021,2]
[359741213,1746293232497,-410.14,0.00018021,2]
[359741214,1746293232517,-400.0,0.00018021,2]
[359741215,1746293232539,-400.0,0.00018021,2]
[359741216,1746293232559,-400.0,0.00018021,2]
[359741217,1746293232580,-400.0,0.00018021,2]
[359741218,1746293232600,-400.0,0.00018021,2]
[359741219,1746293232622,-400.0,0.00018021,2]
[359741220,1746293232642,-400.0,0.00018021,2]
[359741221,1746293232663,-400.0,0.00018021,2]
[359741222,1746293232683,-400.0,0.00018021,2]
[359741223,1746293232707,-400.0,0.00018021,2]
[359741224,1746293232728,-400.0,0.00018021,2]
[359741225,1746293232749,-400.0,0.00018021,2]
[359741226,1746293232771,-536.51,0.00018021,2]
[359741227,1746293232792,-400.0,0.00018021,2]
[359741228,1746293232813,-491.4,0.00018021,2]
[359741229,1746293232833,-400.0,0.00018021,2]
[359741230,1746293232855,-400.0,0.00018021,2]
[359741231,1746293232877,-400.0,0.00018021,2]
[359741232,1746293232898,-400.0,0.00018021,2]
[359741233,1746293232919,-484.23,0.00018021,2]
[359741234,1746293232939,-400.0,0.00018021,2]
[359741235,1746293232961,-400.0,0.00018021,2]
[359741236,1746293232981,-1055.43,0.00018021,2]
[359741237,1746293233001,-400.0,0.00018021,2]
[359741238,1746293233024,-400.0,0.00018021,2]
[359741239,1746293233045,-1576.28,0.00018021,2]
[359741240,1746293233065,-704.09,0.00018021,2]
[359741241,1746293233086,-400.0,0.00018021,2]
[359741242,1746293233109,-400.0,0.00018021,2]
[359741243,1746293233129,-400.0,0.00018021,2]
[359741244,1746293233150,-400.0,0.00018021,2]
[359741245,1746293233171,-444.6,0.00018021,2]
[359741246,1746293233191,-400.0,0.00018021,2]
[359741247,1746293233211,-400.0,0.00018021,2]
[359741248,1746293233234,-400.0,0.00018021,2]
[359741249,1746293233429,-400.0,0.00018021,2]
[359741250,1746293233450,-445.18,0.00018021,2]
[359741251,1746293233470,-400.0,0.00018021,2]
[359741252,1746293233490,-400.0,0.00018021,2]
[359741253,1746293233512,-400.0,0.00018021,2]
[359741254,1746293233533,-400.0,0.00018021,2]
[359741255,1746293233554,-400.0,0.00018021,2]
[359741256,1746293233575,-519.5,0.00018021,2]
[359741257,1746293233596,-400.0,0.00018021,2]
[359741258,1746293233617,-400.0,0.00018021,2]
[359741259,1746293233637,-400.0,0.00018021,2]
[359741260,1746293233657,-400.0,0.00018021,2]
[359741261,1746293233679,-400.0,0.00018021,2]
[359741262,1746293233702,-400.0,0.00018021,2]
[359741263,1746293233723,-400.0,0.00018021,2]
[359741264,1746293233744,-648.7,0.00018021,2]
[359741265,1746293233766,-400.0,0.00018021,2]
[359741266,1746293233789,-707.95,0.00018021,2]
[359741267,1746293233809,-553.41,0.00018021,2]
[359741268,1746293233830,-461.15,0.00018021,2]
[359741269,1746293233851,-400.0,0.00018021,2]
[359741270,1746293233872,-400.0,0.00018021,2]
[359741271,1746293233892,-400.0,0.00018021,2]
[359741272,1746293233913,-737.45,0.00018021,2]
[359741273,1746293233932,-403.01786976,0.00018021,2]
[359741274,1746293233952,-400.0,0.00018021,2]
[359741275,1746293233973,-400.0,0.00018021,2]
[359741276,1746293233995,-400.0,0.00018021,2]
[359741277,1746293234015,-400.0,0.00018021,2]
[359741278,1746293234036,-400.0,0.00018021,2]
[359741279,1746293234056,-400.0,0.00018021,2]
[359741280,1746293234076,-400.0,0.00018021,2]
[359741281,1746293234097,-400.0,0.00018021,2]
[359741282,1746293234116,-400.0,0.00018021,2]
[359741283,1746293234136,-400.0,0.00018021,2]
[359741284,1746293234156,-400.0,0.00018021,2]
[359741285,1746293234176,-400.0,0.00018021,2]
[359741286,1746293234196,-801.26,0.00018021,2]
[359741287,1746293234217,-400.0,0.00018021,2]
[359741288,1746293234239,-1011.56,0.00018021,2]
[359741289,1746293234260,-1481.15,0.00018021,2]
[359741290,1746293234281,-400.0,0.00018021,2]
[359741291,1746293234302,-400.0,0.00018021,2]
[359741292,1746293234326,-1772.47,0.00018021,2]
[359741293,1746293234348,-408.03800038,0.00018021,2]
[359741294,1746293234369,-677.46,0.00018021,2]
[359741295,1746293234390,-459.81,0.00018021,2]
[359741296,1746293234411,-400.0,0.00018021,2]
[359741297,1746293234431,-622.59,0.00018021,2]
[359741298,1746293234452,-305.86442307,0.00018021,2]
[359741299,1746293234474,-400.0,0.00018021,2]
[359741300,1746293234495,-400.0,0.00018021,2]
[359741301,1746293234517,-400.0,0.00018021,2]
[359741302,1746293234539,-400.0,0.00018021,2]
[359741303,1746293234560,-400.0,0.00018021,2]
[359741304,1746293234583,-661.01,0.00018021,2]
[359741305,1746293234605,-751.55,0.00018021,2]
[359741306,1746293234626,-400.0,0.00018021,2]
[359741307,1746293234647,-424.59,0.00018021,2]
[359741308,1746293234669,-400.0,0.00018021,2]
[359741309,1746293234691,-452.46,0.00018021,2]
[359741310,1746293234717,-1309.45,0.00018021,2]
[359741311,1746293234739,-400.0,0.00018021,2]
[359741312,1746293234761,-400.0,0.00018021,2]
[359741313,1746293234783,-400.0,0.00018021,2]
[359741314,1746293234804,-400.0,0.00018021,2]
[359741315,1746293234824,-431.75,0.00018021,2]
[359741316,1746293234847,-400.0,0.00018024,2]
[359741317,1746293234868,-400.0,0.00018024,2]
[359741318,1746293234890,-400.0,0.00018024,2]
[359741319,1746293234910,-400.0,0.00018024,2]
[359741320,1746293234930,-400.0,0.00018024,2]
[359741321,1746293234951,-680.98172416,0.00018127,2]
[359741322,1746293234971,-419.5,0.00018295,2]
[359741323,1746293234993,-294.01585497,0.00018295,2]
[359741324,1746293235013,-400.0,0.00018295,2]
[359741325,1746293235033,-400.0,0.00018295,2]
[359741326,1746293235053,-400.0,0.00018295,2]
[359741327,1746293235074,-744.39,0.00018295,2]
[359741328,1746293235099,-400.0,0.00018295,2]
[359741329,1746293235122,-400.0,0.00018295,2]
[359741330,1746293235144,-400.0,0.00018295,2]
[359741331,1746293235166,-400.0,0.00018295,2]
[359741332,1746293235187,-299.9,0.00018295,2]
[359741333,1746293235207,-533.64,0.00018295,2]
[359741334,1746293235227,-400.0,0.00018295,2]
[359741335,1746293235247,-400.0,0.00018295,2]
[359741336,1746293235269,-400.0,0.00018295,2]
[359741337,1746293235288,-541.69,0.00018295,2]
[359741338,1746293235309,-400.0,0.00018295,2]
[359741339,1746293235330,-400.0,0.00018295,2]
[359741340,1746293235350,-400.0,0.00018295,2]
[359741341,1746293235371,-400.0,0.00018295,2]
[359741342,1746293235392,-410.14,0.00018295,2]
[359741343,1746293235412,-400.0,0.00018295,2]
[359741344,1746293235433,-400.0,0.00018295,2]
[359741345,1746293235453,-400.0,0.00018295,2]
[359741346,1746293235474,-400.0,0.00018295,2]
[359741347,1746293235495,-171.49767257,0.00018295,2]
[359741348,1746293235516,-400.0,0.00018295,2]
[359741349,1746293235538,-400.0,0.00018295,2]
[359741350,1746293235558,-400.0,0.00018295,2]
[359741351,1746293235580,-400.0,0.00018295,2]
[359741352,1746293235600,-400.0,0.00018295,2]
[359741353,1746293235621,-536.51,0.00018295,2]
[359741354,1746293235642,-491.4,0.00018295,2]
[359741355,1746293235663,-400.0,0.00018295,2]
[359741356,1746293235684,-400.0,0.00018295,2]
[359741357,1746293235708,-400.0,0.00018295,2]
[359741358,1746293235730,-400.0,0.00018295,2]
[359741359,1746293235752,-484.23,0.00018295,2]
[359741360,1746293235775,-400.0,0.00018295,2]
[359741361,1746293235796,-400.0,0.00018295,2]
[359741362,1746293235819,-1055.43,0.00018295,2]
[359741363,1746293235838,-400.0,0.00018295,2]
[359741364,1746293235859,-400.0,0.00018295,2]
[359741365,1746293235878,-1576.28,0.00018295,2]
[359741366,1746293235898,-704.09,0.00018295,2]
[359741367,1746293235920,-400.0,0.00018295,2]
[359741368,1746293235942,-400.0,0.00018295,2]
[359741369,1746293235963,-400.0,0.00018295,2]
[359741370,1746293235982,-400.0,0.00018295,2]
[359741371,1746293236002,-444.6,0.00018295,2]
[359741372,1746293236022,-400.0,0.00018295,2]
[359741373,1746293236043,-400.0,0.00018295,2]
[359741374,1746293236064,-400.0,0.00018295,2]
[359741375,1746293236084,-400.0,0.00018295,2]
[359741376,1746293236104,-445.18,0.00018295,2]
[359741377,1746293236123,-400.0,0.00018295,2]
[359741378,1746293236143,-400.0,0.00018295,2]
[359741379,1746293236163,-400.0,0.00018295,2]
[359741380,1746293236185,-520.52264075,0.00018295,2]
[359741381,1746293236205,-519.5,0.00018295,2]
[359741382,1746293236225,-400.0,0.00018295,2]
[359741383,1746293236244,-400.0,0.00018295,2]
[359741384,1746293236264,-400.0,0.00018295,2]
[359741385,1746293236406,-400.0,0.00018295,2]
[359741386,1746293236428,-400.0,0.00018295,2]
[359741387,1746293236449,-648.7,0.00018295,2]
[359741388,1746293236468,-400.0,0.00018295,2]
[359741389,1746293236489,-707.95,0.00018295,2]
[359741390,1746293236510,-553.41,0.00018295,2]
[359741391,1746293236531,-461.15,0.00018295,2]
[359741392,1746293236551,-400.0,0.00018295,2]
[359741393,1746293236571,-400.0,0.00018295,2]
[359741394,1746293236593,-400.0,0.00018295,2]
[359741395,1746293236614,-737.45,0.00018295,2]
[359741396,1746293236636,-400.0,0.00018295,2]
[359741397,1746293236656,-540.56548952,0.00018295,2]
[359741398,1746293236676,-400.0,0.00018295,2]
[359741399,1746293236697,-400.0,0.00018295,2]
[359741400,1746293236720,-400.0,0.00018295,2]
[359741401,1746293236740,-400.0,0.00018295,2]
[359741402,1746293236761,-400.0,0.00018295,2]
[359741403,1746293236781,-400.0,0.00018295,2]
[359741404,1746293236803,-400.0,0.00018295,2]
[359741405,1746293236824,-400.0,0.00018295,2]
[359741406,1746293236844,-400.0,0.00018295,2]
[359741407,1746293236865,-801.26,0.00018295,2]
[359741408,1746293236885,-400.0,0.00018295,2]
[359741409,1746293236909,-1011.56,0.00018295,2]
[359741410,1746293236930,-1481.15,0.00018295,2]
[359741411,1746293236950,-400.0,0.00018295,2]
[359741412,1746293236971,-400.0,0.00018295,2]
[359741413,1746293236993,-1772.47,0.00018295,2]
[359741414,1746293237013,-677.46,0.00018295,2]
[359741415,1746293237034,-400.0,0.00018295,2]
[359741416,1746293237054,-459.81,0.00018295,2]
[359741417,1746293237074,-622.59,0.00018295,2]
[359741418,1746293237094,-400.0,0.00018295,2]
[359741419,1746293237114,-400.0,0.00018295,2]
[359741420,1746293237134,-400.0,0.00018295,2]
[359741421,1746293237154,-400.0,0.00018295,2]
[359741422,1746293237173,-400.0,0.00018295,2]
[359741423,1746293237193,-661.01,0.00018295,2]
[359741424,1746293237213,-751.55,0.00018295,2]
[359741425,1746293237233,-400.0,0.00018295,2]
[359741426,1746293237252,-424.59,0.00018295,2]
[359741427,1746293237272,-400.0,0.00018295,2]
[359741428,1746293237293,-452.46,0.00018295,2]
[359741429,1746293237315,-1309.45,0.00018295,2]
[359741430,1746293237334,-400.0,0.00018295,2]
[359741431,1746293237354,-400.0,0.00018295,2]
[359741432,1746293237374,-400.0,0.00018295,2]
[359741433,1746293237396,-431.75,0.00018295,2]
[359741434,1746293237418,-151.0,0.00018298,2]
[359741435,1746293237437,-158.397086,0.00018298,2]
[359741436,1746293237457,-400.0,0.00018298,2]
[359741437,1746293237478,-400.0,0.00018298,2]
[359741438,1746293237498,-400.0,0.00018298,2]
[359741439,1746293237517,-680.98172416,0.00018332,2]
[359741440,1746293237539,-804.10974868,0.00018387,2]
[359741441,1746293237559,-507.49178017,0.00018424,2]
[359741442,1746293237580,-500.0,0.00018424,2]
[359741443,1746293237600,-501.31651463,0.00018424,2]
[359741444,1746293237621,-500.0,0.00018424,2]
[359741445,1746293237642,-505.08335825,0.00018424,2]
[359741446,1746293237662,-500.0,0.00018424,2]
[359741447,1746293237683,-500.0,0.00018424,2]
[359741448,1746293237706,-500.0,0.00018424,2]
[359741449,1746293237727,-500.0,0.00018424,2]
[359741450,1746293237749,-427.23636055,0.00018424,2]
[359741451,1746293237769,-501.43094092,0.00018424,2]
[359741452,1746293237791,-500.0,0.00018424,2]
[359741453,1746293237811,-500.0,0.00018424,2]
[359741454,1746293237832,-500.0,0.00018424,2]
[359741455,1746293237852,-500.0,0.00018424,2]
[359741456,1746293237872,-500.0,0.00018424,2]
[359741457,1746293237892,-500.46298553,0.00018424,2]
[359741458,1746293237912,-500.83280941,0.00018424,2]
[359741459,1746293237932,-502.25984912,0.00018424,2]
[359741460,1746293237952,-500.0,0.00018424,2]
[359741461,1746293237972,-160.62758568,0.00018424,2]
[359741462,1746293237993,-500.0,0.00018424,2]
[359741463,1746293238014,-500.0,0.00018424,2]
[359741464,1746293238036,-393.41134768,0.00018429,2]